fUSD/lending_fUSD_20251201
["ID","MTS","AMOUNT","RATE_DAILY","PERIOD"]
[395307251,1764605442247,-150.0,0.00015712,2]
[395307252,1764605442261,-893.296114,0.00015713,2]
[395307253,1764605442276,-150.0,0.00015735,2]
[395307254,1764605442290,-150.0,0.00015737,2]
[395307255,1764605442304,-150.0,0.00015745,2]
[395307256,1764605442318,-200.0,0.00015757,2]
[395307257,1764605442333,-500.0,0.00015757,2]
[395307258,1764605442347,-200.0,0.00015757,2]
[395307259,1764605442361,-1158.48,0.00015757,2]
[395307260,1764605442377,-600.0,0.00015766,2]
[395307261,1764605442391,-12401.30648054,0.00015769,2]
[395307262,1764605442405,-150.0,0.00015773,2]
[395307263,1764605442419,-150.0,0.00015773,2]
[395307264,1764605442434,-150.0,0.00015787,2]
[395307265,1764605442448,-150.0,0.0001581,2]
[395307266,1764605442462,-150.0,0.00015818,2]
[395307267,1764605442477,-150.0,0.00015824,2]
[395307268,1764605442491,-150.0,0.00015837,2]
[395307269,1764605442505,-150.0,0.00015854,2]
[395307270,1764605442518,-150.0,0.00015854,2]
[395307271,1764605442532,-150.0,0.00015876,2]
[395307272,1764605442546,-4110.84,0.0001588,2]
[395307273,1764605442560,-150.0,0.00015887,2]
[395307274,1764605442575,-150.0,0.00015894,2]
[395307275,1764605442588,-150.0,0.00015894,2]
[395307276,1764605442603,-166.66,0.00015899,2]
[395307277,1764605442616,-11287.73537737,0.0001591,2]
[395307278,1764605442630,-150.0,0.00015913,2]
[395307279,1764605442644,-150.0,0.00015925,2]
[395307280,1764605442658,-150.0,0.00015925,2]
[395307281,1764605442672,-150.0,0.00015937,2]
[395307282,1764605442686,-150.0,0.00015941,2]
[395307283,1764605442701,-150.0,0.00015967,2]
[395307284,1764605442714,-150.0,0.00015987,2]
[395307285,1764605442728,-166.66,0.00015994,2]
[395307286,1764605442742,-150.0,0.00016003,2]
[395307287,1764605442755,-150.0,0.00016006,2]
[395307289,1764605442769,-738.37725962,0.00016007,2]
[395307291,1764605442784,-150.0,0.00016016,2]
[395307292,1764605442797,-150.0,0.00016016,2]
[395307293,1764605442812,-150.0,0.00016031,2]
[395307294,1764605442826,-1158.48,0.00016031,2]
[395307296,1764605442840,-150.0,0.00016037,2]
[395307298,1764605442854,-150.0,0.00016043,2]
[395307299,1764605442868,-150.0,0.00016072,2]
[395307300,1764605442882,-150.0,0.00016087,2]
[395307301,1764605442896,-150.0,0.00016092,2]
[395307302,1764605442913,-11287.73537737,0.00016108,2]
[395307303,1764605442926,-9999.99,0.00016116,2]
[395307304,1764605442940,-150.0,0.00016137,2]
[395307305,1764605442954,-150.0,0.00016137,2]
[395307306,1764605442967,-150.0,0.00016137,2]
[395307307,1764605442982,-150.0,0.00016137,2]
[395307308,1764605442996,-150.0,0.00016137,2]
[395307309,1764605443010,-150.0,0.00016137,2]
[395307310,1764605443024,-150.0,0.00016137,2]
[395307311,1764605443038,-150.0,0.00016137,2]
[395307312,1764605443052,-150.0,0.00016137,2]
[395307313,1764605443065,-150.0,0.00016182,2]
[395307314,1764605443079,-150.0,0.00016187,2]
[395307315,1764605443092,-307.78797683,0.00016198,2]
[395307316,1764605443107,-150.0,0.00016202,2]
[395307317,1764605443121,-151.0,0.00016205,2]
[395307318,1764605443135,-166.66,0.00016208,2]
[395307319,1764605443149,-150.0,0.00016231,2]
[395307320,1764605443164,-150.0,0.00016237,2]
[395307321,1764605443179,-150.0,0.00016243,2]
[395307322,1764605443195,-150.0,0.00016258,2]
[395307323,1764605443209,-150.0,0.00016258,2]
[395307324,1764605443225,-150.0,0.00016268,2]
[395307325,1764605443240,-150.0,0.00016271,2]
[395307326,1764605443256,-150.0,0.00016287,2]
[395307327,1764605443270,-200.0,0.00016305,2]
[395307328,1764605443284,-500.0,0.00016305,2]
[395307329,1764605443298,-205.57943248,0.00016305,2]
[395307330,1764605443312,-500.0,0.00016305,2]
[395307331,1764605443326,-500.0,0.00016305,2]
[395307332,1764605443341,-1158.48,0.00016305,2]
[395307333,1764605443358,-11287.73537737,0.00016306,2]
[395307334,1764605443373,-150.0,0.00016307,2]
[395307335,1764605443387,-600.0,0.00016314,2]
[395307336,1764605443401,-150.0,0.00016333,2]
[395307337,1764605443415,-282.0,0.00016336,2]
[395307339,1764605443429,-150.0,0.00016337,2]
[395307341,1764605443443,-1500.82379601,0.00016338,2]
[395307343,1764605443456,-500.0,0.00016339,2]
[395307344,1764605443469,-500.0,0.00016339,2]
[395307345,1764605443483,-413.92477484,0.00016339,2]
[395307346,1764605443497,-500.0,0.00016339,2]
[395307347,1764605443510,-150.0,0.00016349,2]
[395307348,1764605443524,-150.0,0.00016349,2]
[395307349,1764605443538,-150.0,0.0001636,2]
[395307350,1764605443551,-150.0,0.0001638,2]
[395307351,1764605443564,-150.0,0.0001638,2]
[395307352,1764605443576,-150.0,0.00016387,2]
[395307353,1764605443589,-150.0,0.00016398,2]
[395307354,1764605443603,-893.296114,0.00016411,2]
[395307355,1764605443616,-174.0,0.00016419,2]
[395307356,1764605443630,-150.0,0.0001642,2]
[395307357,1764605443643,-150.0,0.0001642,2]
[395307358,1764605443656,-150.0,0.00016437,2]
[395307359,1764605443669,-500.0,0.00016438,2]
[395307360,1764605443683,-500.0,0.00016438,2]
[395307361,1764605443696,-500.0,0.00016438,2]
[395307362,1764605443709,-500.0,0.00016438,2]
[395307364,1764605443722,-500.0,0.00016438,2]
[395307366,1764605443735,-500.0,0.00016438,2]
[395307367,1764605443749,-1000.0,0.00016438,2]
[395307369,1764605443763,-1000.0,0.00016438,2]
[395307370,1764605443776,-1000.0,0.00016438,2]
[395307371,1764605443790,-317.37727413,0.00016438,2]
[395307372,1764605443803,-800.0,0.00016438,2]
[395307373,1764605443817,-858.07869525,0.00016442,2]
[395307374,1764605443831,-150.0,0.0001645,2]
[395307375,1764605443844,-150.0,0.00016455,2]
[395307376,1764605443860,-150.0,0.00016464,2]
[395307377,1764605443873,-150.0,0.00016487,2]
[395307378,1764605443887,-166.66,0.00016489,2]
[395307379,1764605443903,-150.0,0.00016501,2]
[395307380,1764605443917,-150.0,0.00016501,2]
[395307381,1764605443930,-1680.0,0.00016501,2]
[395307382,1764605443942,-150.0,0.00016502,3]
[395307383,1764605443955,-286.46715625,0.00016502,3]
[395307384,1764605443967,-5000.0,0.00016502,3]
[395307385,1764605443981,-179.13404474,0.00016502,3]
[395307386,1764605443994,-2500.0,0.00016502,2]
[395307387,1764605444006,-2500.0,0.00016502,2]
[395307388,1764605444018,-2500.0,0.00016502,2]
[395307389,1764605444031,-2500.0,0.00016502,2]
[395307390,1764605444043,-795.73324201,0.00016502,2]
[395307391,1764605444056,-11287.73537737,0.00016504,2]
[395307392,1764605444068,-150.0,0.00016529,2]
[395307393,1764605444080,-150.0,0.00016537,2]
[395307394,1764605444092,-150.0,0.00016539,2]
[395307395,1764605444105,-150.0,0.00016562,2]
[395307396,1764605444117,-150.0,0.00016562,2]
[395307397,1764605444129,-1158.48,0.00016579,2]
[395307398,1764605444142,-150.0,0.00016587,2]
[395307399,1764605444153,-150.0,0.00016594,2]
[395307400,1764605444165,-150.0,0.00016609,2]
[395307401,1764605444178,-150.0,0.00016622,2]
[395307402,1764605444189,-150.0,0.00016622,2]
[395307403,1764605444202,-150.0,0.00016629,2]
[395307404,1764605444215,-150.0,0.00016637,2]
[395307405,1764605444228,-356.70460319,0.00016639,2]
[395307406,1764605444241,-150.0,0.00016647,2]
[395307407,1764605444254,-427.65493559,0.00016659,2]
[395307408,1764605444266,-150.0,0.0001666,2]
[395307409,1764605444279,-150.0,0.00016668,2]
[395307410,1764605444291,-150.0,0.00016687,2]
[395307411,1764605444303,-11287.73537737,0.00016702,2]
[395307412,1764605444316,-176.07,0.00016712,2]
[395307413,1764605444328,-150.0,0.00016718,2]
[395307414,1764605444340,-877.18,0.00016722,2]
[395307415,1764605444352,-150.0,0.00016725,2]
[395307416,1764605444364,-150.0,0.00016737,2]
[395307417,1764605444377,-150.0,0.00016744,2]
[395307418,1764605444389,-150.0,0.00016744,2]
[395307419,1764605444401,-500.0,0.00016768,2]
[395307420,1764605444414,-150.0,0.00016774,2]
[395307421,1764605444426,-150.0,0.00016774,2]
[395307422,1764605444439,-150.0,0.00016786,2]
[395307423,1764605444452,-4920.3604901,0.0001679,2]
[395307424,1764605444465,-150.0,0.0001679,2]
[395307425,1764605444478,-150.0,0.00016798,2]
[395307426,1764605444492,-442.52408404,0.000168,2]
[395307427,1764605444505,-150.0,0.00016807,2]
[395307428,1764605444517,-152.99,0.00016808,2]
[395307429,1764605444530,-7000.0,0.0001683,2]
[395307430,1764605444543,-150.0,0.00016836,2]
[395307431,1764605444555,-500.0,0.00016838,2]
[395307432,1764605444568,-200.0,0.00016853,2]
[395307433,1764605444580,-500.0,0.00016853,2]
[395307434,1764605444592,-1158.48,0.00016853,2]
[395307435,1764605444605,-150.0,0.00016856,2]
[395307436,1764605444616,-1129.78529246,0.00016859,2]
[395307437,1764605444631,-600.0,0.00016862,2]
[395307438,1764605444642,-200.0,0.00016864,2]
[395307439,1764605444655,-150.0,0.00016865,2]
[395307440,1764605444667,-150.0,0.00016865,2]
[395307441,1764605444679,-150.0,0.0001688,2]
[395307442,1764605444691,-150.0,0.00016886,2]
[395307443,1764605444704,-2230.59782528,0.0001689,2]
[395307444,1764605444716,-738.37725962,0.00016896,2]
[395307445,1764605444728,-150.0,0.00016897,2]
[395307446,1764605444741,-500.0,0.00016899,2]
[395307447,1764605444755,-425.5347,0.000169,2]
[395307448,1764605444768,-601.00906124,0.000169,2]
[395307449,1764605444781,-388.91082704,0.000169,2]
[395307450,1764605444794,-11287.73537737,0.000169,2]
[395307451,1764605444807,-4891.16942662,0.000169,2]
[395307452,1764605444819,-286.9588226,0.000169,2]
[395307453,1764605444831,-253.6,0.00016915,2]
[395307454,1764605444844,-150.0,0.00016921,2]
[395307455,1764605444859,-150.0,0.00016936,2]
[395307456,1764605444874,-222.0,0.00016958,2]
[395307457,1764605444891,-1716.0,0.00016959,2]
[395307458,1764605444909,-500.0,0.00016973,2]
[395307459,1764605444922,-504.44408651,0.00016973,2]
[395307460,1764605444935,-500.0,0.00016973,2]
[395307461,1764605444950,-530.55981646,0.00016973,2]
[395307462,1764605444962,-500.0,0.00016973,2]
[395307463,1764605444977,-500.0,0.00016973,2]
[395307464,1764605444990,-500.0,0.00016973,2]
[395307465,1764605445002,-500.0,0.00016973,2]
[395307466,1764605445016,-500.0,0.00016983,2]
[395307467,1764605445028,-166.66,0.00016984,2]
[395307468,1764605445041,-226.43577512,0.00016986,2]
[395307469,1764605445054,-15940.0,0.00016986,2]
[395307470,1764605445067,-150.0,0.00016986,2]
[395307471,1764605445079,-150.0,0.00016986,2]
[395307472,1764605445092,-150.0,0.00016986,2]
[395307473,1764605445105,-150.0,0.00016986,2]
[395307474,1764605445117,-150.0,0.00016986,2]
[395307475,1764605445130,-150.0,0.00016986,2]
[395307476,1764605445143,-150.0,0.00016986,2]
[395307477,1764605445157,-150.00000001,0.00016986,2]
[395307478,1764605445172,-150.0,0.00016986,2]
[395307479,1764605445188,-150.0,0.00016986,2]
[395307480,1764605445203,-150.0,0.00016986,2]
[395307481,1764605445217,-150.0,0.00016986,2]
[395307482,1764605445231,-150.0,0.00016986,2]
[395307483,1764605445245,-150.0,0.00016986,2]
[395307484,1764605445259,-150.0,0.00016986,2]
[395307485,1764605445273,-2230.59782528,0.0001699,2]
[395307486,1764605445287,-2230.59782528,0.0001699,2]
[395307487,1764605445301,-3028.9781495,0.00016996,2]
[395307488,1764605445315,-155875.7557166,0.00016996,2]
[395307489,1764605445330,-3545.6566035,0.00016996,2]
[395307490,1764605445344,-5970.3383575,0.00016996,2]
[395307491,1764605445362,-90001.6114011,0.00016996,2]
[395307492,1764605445377,-3888.8458084,0.00016996,2]
[395307493,1764605445390,-151.0,0.00016997,2]
[395307525,1764605446180,-500.0,0.00016999,2]
[395307527,1764605446233,-500.0,0.00016999,2]
[395307529,1764605446271,-500.0,0.00016999,2]
[395307530,1764605446291,-500.0,0.00016999,2]
[395307531,1764605446302,-500.0,0.00016999,2]
[395307532,1764605446312,-500.0,0.00016999,2]
[395307533,1764605446322,-500.0,0.00016999,2]
[395307534,1764605446331,-500.0,0.00016999,2]
[395307535,1764605446340,-500.0,0.00016999,2]
[395307536,1764605446350,-500.0,0.00016999,2]
[395307537,1764605446361,-500.0,0.00016999,2]
[395307538,1764605446371,-500.0,0.00016999,2]
[395307539,1764605446380,-533.0,0.00016999,2]
[395307540,1764605446390,-500.0,0.00016999,2]
[395307541,1764605446399,-500.0,0.00016999,2]
[395307542,1764605446410,-500.0,0.00016999,2]
[395307543,1764605446419,-513.51,0.00016999,2]
[395307544,1764605446429,-1000.0,0.00016999,2]
[395307545,1764605446439,-500.0,0.00016999,2]
[395307546,1764605446449,-500.0,0.00016999,2]
[395307547,1764605446458,-500.0,0.00016999,2]
[395307548,1764605446468,-500.0,0.00016999,2]
[395307549,1764605446477,-500.0,0.00016999,2]
[395307551,1764605446495,-500.0,0.00016999,2]
[395307552,1764605446505,-500.0,0.00016999,2]
[395307553,1764605446515,-500.0,0.00016999,2]
[395307554,1764605446525,-500.0,0.00016999,2]
[395307555,1764605446536,-220.38756013,0.00016999,2]
[395307556,1764605446546,-500.0,0.00016999,2]
[395307557,1764605446556,-500.0,0.00016999,2]
[395307558,1764605446566,-300.0,0.00016999,2]
[395307559,1764605446577,-544.34192817,0.00016999,2]
[395307560,1764605446588,-411.9192268,0.00016999,2]
[395307561,1764605446599,-300.0,0.00016999,2]
[395307562,1764605446611,-300.0,0.00016999,2]
[395307563,1764605446622,-300.0,0.00016999,2]
[395307564,1764605446634,-566380.46913728,0.00017,2]
[395307565,1764605446644,-6742.26933708,0.00017,2]
[395307566,1764605446655,-5287026.97023235,0.00017,2]
[395307567,1764605446703,-2170.94297252,0.00017,2]
[395307568,1764605446720,-17845.8268315,0.00017,2]
[395307571,1764605447029,-9018.40049717,0.00017,2]
[395307572,1764605447982,-262.69653724,0.000169,2]
[395307573,1764605447992,-202.14230748,0.00016973,2]
[395307574,1764605448386,-297.85769252,0.00016973,2]
[395307575,1764605448396,-708.74432715,0.00017,2]
[395307576,1764605448408,-14989.06189279,0.00017,2]
[395307577,1764605448420,-502.39505563,0.00017,2]
[395307578,1764605448432,-2074.74606667,0.00017,2]
[395307579,1764605448463,-10264.48088164,0.00017,2]
[395307580,1764605448476,-6652.16,0.00017,2]
[395307581,1764605448487,-10132.762,0.00017,2]
[395307583,1764605545579,150.0,0.00022,30]
[395307584,1764605559771,150.0,0.00022,30]
[395307585,1764605599329,500.0,0.00022,30]
[395307586,1764605600108,150.0,0.00022,30]
[395307587,1764605602133,150.0,0.00022,30]
[395307588,1764605610903,150.0,0.00022,30]
[395307589,1764605612153,500.0,0.00022,30]
[395307590,1764605615380,208.32314397,0.00022,30]
[395307591,1764605616420,500.0,0.00022,30]
[395307592,1764605618635,500.0,0.00022,30]
[395307594,1764605672487,662.90195361,0.00014909,2]
[395307595,1764605694088,968.53938767,0.00014909,2]
[395307596,1764605798984,500.0,0.00022,30]
[395307597,1764605801596,150.0,0.00022,30]
[395307598,1764605802984,150.0,0.00022,30]
[395307599,1764605811642,150.0,0.00022,30]
[395307600,1764605814335,500.0,0.00022,30]
[395307601,1764605817555,500.0,0.00022,30]
[395307602,1764605819010,500.0,0.00022,30]
[395307603,1764605857632,500.0,0.00022,30]
[395307604,1764605868113,500.0,0.00022,30]
[395307605,1764605881401,152.48174013,0.00022,30]
[395307606,1764605897056,11503.62659192,0.00014909,2]
[395307613,1764605960519,876.39628278,0.00014909,2]
[395307615,1764605981080,150.0,0.00022,30]
[395307616,1764605985642,500.0,0.00022,30]
[395307617,1764605990754,150.0,0.00022,30]
[395307618,1764605992145,150.0,0.00022,30]
[395307619,1764605994376,500.0,0.00022,30]
[395307620,1764605996091,150.0,0.00022,30]
[395307621,1764605998807,150.0,0.00022,30]
[395307622,1764605999523,152.32375408,0.00022,30]
[395307623,1764606013741,500.0,0.00022,30]
[395307624,1764606015783,150.0,0.00022,30]
[395307625,1764606016939,150.0,0.00022,30]
[395307626,1764606018105,150.0,0.00022,30]
[395307627,1764606018631,150.0,0.00022,30]
[395307628,1764606027011,150.0,0.00022,30]
[395307629,1764606029076,500.0,0.00022,30]
[395307633,1764606202261,500.0,0.00022,30]
[395307634,1764606206362,150.0,0.00022,30]
[395307635,1764606213949,500.0,0.00022,30]
[395307636,1764606227391,500.0,0.00022,30]
[395307637,1764606236282,150.0,0.00022,30]
[395307639,1764606252873,150.0,0.00022,30]
[395307641,1764606254810,150.0,0.00022,30]
[395307642,1764606263932,150.0,0.00022,30]
[395307643,1764606265149,150.0,0.00022,30]
[395307644,1764606266527,150.0,0.00022,30]
[395307645,1764606268507,150.0,0.00022,30]
[395307646,1764606272176,150.0,0.00022,30]
[395307647,1764606275629,150.0,0.00022,30]
[395307648,1764606276413,150.0,0.00022,30]
[395307649,1764606278308,150.0,0.00022,30]
[395307650,1764606280031,150.0,0.00022,30]
[395307651,1764606281926,150.0,0.00022,30]
[395307652,1764606283141,150.0,0.00022,30]
[395307653,1764606284309,150.0,0.00022,30]
[395307654,1764606287416,150.0,0.00022,30]
[395307661,1764606433437,500.0,0.00022,30]
[395307669,1764606443621,150.0,0.00022,30]
[395307670,1764606445166,500.0,0.00022,30]
[395307675,1764606552925,500.0,0.00022,30]
[395307676,1764606557457,281.12644847,0.00022,30]
[395307677,1764606563211,500.0,0.00022,30]
[395307679,1764606625234,150.0,0.00022,30]
[395307684,1764606632062,500.0,0.00022,30]
[395307690,1764606632225,-259.89198593,0.00012399,2]
[395307691,1764606632235,-195.0,0.00013977,2]
[395307692,1764606632247,-300.0,0.00014133,2]
[395307693,1764606632263,-195.0,0.00014133,2]
[395307694,1764606632274,-27.44074257,0.00014262,2]
[395307695,1764606632298,-272.55925743,0.00014262,2]
[395307696,1764606632309,-182.13785393,0.00014262,2]
[395307697,1764606632322,-117.86214607,0.00014262,2]
[395307698,1764606632333,-300.0,0.00014385,2]
[395307699,1764606632344,-195.0,0.00014385,2]
[395307700,1764606632356,-1200.0,0.00014708,2]
[395307701,1764606632366,-2558.885,0.00014709,2]
[395307702,1764606632376,-173.213,0.00014709,2]
[395307703,1764606632386,-300.0,0.00014908,2]
[395307704,1764606632397,-300.0,0.00014908,2]
[395307705,1764606632407,-150.0,0.00014908,2]
[395307706,1764606632418,-80.76748592,0.00014909,2]
[395307707,1764606632428,-11169.29506256,0.00014909,2]
[395307708,1764606632438,-871.68544893,0.00014909,2]
[395307709,1764606632449,-580.0392094,0.00014909,2]
[395307710,1764606632459,-2706.23257548,0.00014909,2]
[395307712,1764606632473,-192610.94471248,0.00014909,2]
[395307714,1764606632495,-709.31483839,0.00014909,2]
[395307717,1764606632513,-4236.7343283,0.00014909,2]
[395307719,1764606632524,-97078.05065564,0.00014909,2]
[395307720,1764606632536,-848.98458,0.00014909,2]
[395307721,1764606632554,-1689.9515562,0.00014909,2]
[395307722,1764606635908,150.0,0.00022,30]
[395307723,1764606638188,-258.0285,0.00014909,2]
[395307724,1764606638368,-462567.99082899,0.00014909,2]
[395307725,1764606638380,-2500.0,0.00014909,2]
[395307726,1764606638392,-151.0,0.00015,2]
[395307727,1764606638403,-151.0,0.00015,2]
[395307728,1764606638414,-151.0,0.00015,2]
[395307729,1764606638426,-151.0,0.00015,2]
[395307730,1764606638437,-151.0,0.00015,2]
[395307731,1764606638448,-151.0,0.00015,2]
[395307732,1764606638459,-151.0,0.00015,2]
[395307733,1764606638471,-151.0,0.00015,2]
[395307734,1764606638482,-151.0,0.00015,2]
[395307735,1764606638492,-151.0,0.00015,2]
[395307736,1764606638504,-151.0,0.00015,2]
[395307737,1764606638515,-500.0,0.00015,2]
[395307738,1764606638526,-151.0,0.00015,2]
[395307739,1764606638537,-500.0,0.00015,2]
[395307740,1764606638547,-151.0,0.00015,2]
[395307741,1764606638558,-500.0,0.00015,2]
[395307742,1764606638569,-200.0,0.00015,2]
[395307743,1764606638579,-151.0,0.00015,2]
[395307744,1764606638590,-500.0,0.00015,2]
[395307745,1764606638602,-500.0,0.00015,2]
[395307746,1764606638614,-500.0,0.00015,2]
[395307747,1764606638625,-500.0,0.00015,2]
[395307748,1764606638635,-206.71851289,0.00015,2]
[395307749,1764606638647,-500.0,0.00015,2]
[395307750,1764606638658,-500.0,0.00015,2]
[395307751,1764606638669,-500.0,0.00015,2]
[395307752,1764606638680,-500.0,0.00015,2]
[395307753,1764606638691,-500.0,0.00015,2]
[395307754,1764606638702,-500.0,0.00015,2]
[395307755,1764606638712,-500.0,0.00015,2]
[395307756,1764606638722,-500.0,0.00015006,2]
[395307757,1764606638733,-500.0,0.00015006,2]
[395307758,1764606638744,-500.0,0.00015006,2]
[395307759,1764606638754,-500.0,0.00015006,2]
[395307761,1764606638765,-500.0,0.00015006,2]
[395307762,1764606638775,-500.0,0.00015006,2]
[395307764,1764606638785,-500.0,0.00015006,2]
[395307766,1764606638795,-500.0,0.00015006,2]
[395307768,1764606638806,-155.56578465,0.00015006,2]
[395307770,1764606638817,-500.0,0.00015006,2]
[395307773,1764606638827,-500.0,0.00015006,2]
[395307775,1764606638838,-500.0,0.00015006,2]
[395307782,1764606639232,-500.0,0.00015006,2]
[395307783,1764606639287,-500.0,0.00015006,2]
[395307784,1764606639299,-500.0,0.00015006,2]
[395307785,1764606639309,-500.0,0.00015006,2]
[395307786,1764606639319,-500.0,0.00015006,2]
[395307787,1764606639330,-500.0,0.00015006,2]
[395307788,1764606639341,-500.0,0.00015006,2]
[395307789,1764606639352,-500.0,0.00015006,2]
[395307790,1764606639362,-600.0,0.00015006,2]
[395307791,1764606639372,-500.0,0.00015006,2]
[395307792,1764606639382,-500.0,0.00015006,2]
[395307793,1764606639392,-500.0,0.00015006,2]
[395307794,1764606639403,-500.0,0.00015006,2]
[395307795,1764606639413,-500.0,0.00015006,2]
[395307796,1764606639423,-500.0,0.00015006,2]
[395307797,1764606639433,-478.02182085,0.00015006,2]
[395307798,1764606639443,-500.0,0.00015006,2]
[395307799,1764606639453,-500.0,0.00015006,2]
[395307800,1764606639464,-500.0,0.00015006,2]
[395307801,1764606639474,-500.0,0.00015006,2]
[395307802,1764606639485,-637.8634732,0.00015006,2]
[395307803,1764606639495,-500.0,0.00015006,2]
[395307804,1764606639504,-500.0,0.00015006,2]
[395307805,1764606639514,-500.0,0.00015006,2]
[395307806,1764606639524,-500.0,0.00015006,2]
[395307807,1764606639534,-500.0,0.00015006,2]
[395307808,1764606639544,-197.50363265,0.00015006,2]
[395307809,1764606639554,-500.0,0.00015006,2]
[395307810,1764606639564,-500.0,0.00015006,2]
[395307811,1764606639575,-500.0,0.00015006,2]
[395307812,1764606639584,-500.0,0.00015006,2]
[395307813,1764606639594,-500.0,0.00015006,2]
[395307814,1764606639603,-500.0,0.00015006,2]
[395307815,1764606639613,-567.83252069,0.00015006,2]
[395307816,1764606639623,-500.0,0.00015006,2]
[395307817,1764606639632,-500.0,0.00015006,2]
[395307818,1764606639642,-500.0,0.00015006,2]
[395307819,1764606639651,-500.0,0.00015006,2]
[395307820,1764606639661,-500.0,0.00015006,2]
[395307821,1764606639671,-500.0,0.00015006,2]
[395307822,1764606639680,-468.93077531,0.00015006,2]
[395307823,1764606639689,-809.75,0.00015008,2]
[395307824,1764606639699,-500.0,0.00015008,2]
[395307825,1764606639708,-500.0,0.00015008,2]
[395307826,1764606639718,-500.0,0.00015008,2]
[395307827,1764606639728,-500.0,0.00015008,2]
[395307828,1764606639737,-500.0,0.00015008,2]
[395307829,1764606639748,-621.67771511,0.00015008,2]
[395307830,1764606639757,-234.98786551,0.00015008,2]
[395307831,1764606639767,-175.7408192,0.00015008,2]
[395307832,1764606639777,-600.0,0.00015009,2]
[395307833,1764606639788,-1000.0,0.00015009,2]
[395307834,1764606639798,-470.2016418,0.0001501,2]
[395307835,1764606639808,-871.68544887,0.0001513,2]
[395307836,1764606639818,-580.03920939,0.00015193,2]
[395307837,1764606639829,-500.0,0.00015217,2]
[395307838,1764606639838,-500.0,0.00015217,2]
[395307839,1764606639848,-500.0,0.00015217,2]
[395307840,1764606639858,-500.0,0.00015217,2]
[395307841,1764606639868,-611.10141512,0.00015217,2]
[395307842,1764606639878,-500.0,0.00015217,2]
[395307843,1764606639888,-500.0,0.00015217,2]
[395307844,1764606639898,-500.0,0.00015217,2]
[395307845,1764606639907,-359.81952588,0.00015217,2]
[395307846,1764606639917,-150.99,0.00015217,2]
[395307847,1764606639927,-250.0,0.0001525,2]
[395307848,1764606639937,-809.75,0.00015282,2]
[395307849,1764606639948,-871.68544887,0.00015351,2]
[395307850,1764606639958,-250.0,0.00015463,2]
[395307851,1764606639969,-580.03920939,0.00015478,2]
[395307852,1764606639979,-151.0,0.00015544,2]
[395307853,1764606639988,-6315.37,0.00015547,2]
[395307854,1764606639999,-14640.13,0.00015547,2]
[395307855,1764606640008,-809.75,0.00015556,2]
[395307856,1764606640018,-600.0,0.00015557,2]